[Event "1st Bella Italia International 2022"]
[Site "Lignano"]
[Date "2022.08.19"]
[Round "4.10"]
[White "Micottis, Dorian"]
[Black "Cino, Giuseppe Adalberto"]
[Result "1-0"]
[ECO "C02"]
[WhiteElo "2263"]
[BlackElo "1976"]
[Annotator "NA RC"]
[PlyCount "65"]
[EventDate "2022.08.18"]
[EventCountry "ITA"]
[SourceTitle "playchess.com"]
[Source "ChessBase"]
[SourceQuality "1"]
[TimeControl "5400+30"]

1. e4 {[%emt 0:00:03]} e6 {[%emt 0:03:15]} 2. d4 {[%emt 0:00:15]} d5 {[%emt 0:00:40]} 3. e5 {[%emt 0:00:07]} c5 {[%emt 0:00:09]} 4. c3 {[%emt 0:00:05]} Nc6 {[%emt 0:00:02]} 5. Nf3 {[%emt 0:00:13]} Bd7 {[%emt 0:00:51]} 6. Be2 {[%emt 0:00:24]} Qb6 {[%emt 0:01:29]} 7. O-O {[%emt 0:00:55]} f6 {[%emt 0:03:02]} 8. dxc5 {[%emt 0:13:16]} Bxc5 {[%emt 0:00:23]} 9. b4 {[%emt 0:00:09]} Be7 {[%emt 0:00:42]} 10. Bf4 {[%emt 0:03:41]} fxe5 {[%emt 0:02:39]} 11. Nxe5 {[%emt 0:00:11]} Nxe5 {[%emt 0:01:48]} 12. Bxe5 {[%emt 0:00:07]} Nf6 {[%emt 0:00:11]} 13. Nd2 {[%emt 0:05:03]} O-O {[%emt 0:00:55]} 14. a4 {[%emt 0:01:14]} Bd6 {[%emt 0:06:11]} 15. Nc4 {[%emt 0:02:41]} dxc4 {[%emt 0:02:15]} 16. Bxd6 {[%emt 0:01:23]} Rf7 {[%emt 0:06:10]} 17. a5 {[%emt 0:11:56]} Qc6 {[%emt 0:10:14]} 18. Qd4 {[%emt 0:03:45]} Rc8 {[%emt 0:04:00]} 19. Bc5 {[%emt 0:10:02]} e5 {[%emt 0:07:17]} 20. Qd6 {[%emt 0:08:45]} b6 {[%emt 0:27:58]} 21. Qxc6 {[%emt 0:04:30]} Rxc6 {[%emt 0:00:25]} 22. axb6 {[%emt 0:00:40]} axb6 {[%emt 0:00:05]} 23. Ra8+ {[%emt 0:00:10]} Be8 {[%emt 0:00:08]} 24. Be3 {[%emt 0:01:10]} b5 {[%emt 0:00:45]} 25. Rd1 {[%emt 0:02:43]} Re6 {[%emt 0:05:46]} 26. Rdd8 {[%emt 0:00:41]} h6 {[%emt 0:00:46]} 27. Bh5 {[%emt 0:04:46]} Rf8 {[%emt 0:03:59]} 28. Bg6 {[%emt 0:01:28]} e4 {[%emt 0:10:02]} 29. Bc5 {[%emt 0:01:19]} e3 {[%emt 0:01:27]} 30. fxe3 {[%emt 0:00:31]} Nd7 {[%emt 0:00:43]} 31. Bxf8 {[%emt 0:04:10]} Rxg6 {[%emt 0:00:26]} 32. Rxe8 {[%emt 0:00:09]} Kh7 {[%emt 0:00:43]} 33. Bc5 {[%emt 0:00:45]} 1-0

[Event "1st Bella Italia International 2022"]
[Site "Lignano"]
[Date "2022.08.19"]
[Round "4.11"]
[White "Della Pietra, Andrea"]
[Black "Cappelletto, Joshuaede"]
[Result "0-1"]
[ECO "D85"]
[WhiteElo "2172"]
[BlackElo "2266"]
[Annotator "NA RC"]
[PlyCount "56"]
[EventDate "2022.08.18"]
[EventCountry "ITA"]
[SourceTitle "playchess.com"]
[Source "ChessBase"]
[SourceQuality "1"]
[TimeControl "5400+30"]

1. d4 {[%emt 0:00:03]} Nf6 {[%emt 0:03:51]} 2. c4 {[%emt 0:00:22]} g6 {[%emt 0:00:07]} 3. Nc3 {[%emt 0:00:26]} d5 {[%emt 0:00:06]} 4. cxd5 {[%emt 0:00:08]} Nxd5 {[%emt 0:00:06]} 5. Bd2 {[%emt 0:00:10]} Nb6 {[%emt 0:00:06]} 6. e3 {[%emt 0:00:38]} Bg7 {[%emt 0:00:05]} 7. f4 {[%emt 0:00:20]} O-O {[%emt 0:00:59]} 8. Nf3 {[%emt 0:00:54]} Na6 {[%emt 0:04:52]} 9. Ne4 {[%emt 0:21:10]} Qd5 {[%emt 0:13:12]} 10. Nc3 {[%emt 0:03:28]} Qd8 {[%emt 0:03:05]} 11. Ne4 {[%emt 0:01:08]} Bf5 {[%emt 0:01:04]} 12. Ng3 {[%emt 0:02:07]} Be6 {[%emt 0:03:34]} 13. Qc2 {[%emt 0:16:08]} Rc8 {[%emt 0:02:36]} 14. Ng5 {[%emt 0:03:04]} c5 {[%emt 0:09:45]} 15. Nxe6 {[%emt 0:03:31]} fxe6 {[%emt 0:00:06]} 16. Bxa6 {[%emt 0:02:59]} cxd4 {[%emt 0:00:15]} 17. Qe4 {[%emt 0:15:05]} bxa6 {[%emt 0:00:05]} 18. Qxe6+ {[%emt 0:01:00]} Kh8 {[%emt 0:00:07]} 19. O-O {[%emt 0:00:24]} Nc4 {[%emt 0:04:22]} 20. Bb4 {[%emt 0:01:44]} Qb6 {[%emt 0:00:34]} 21. Qxb6 {[%emt 0:02:28]} axb6 {[%emt 0:00:07]} 22. exd4 {[%emt 0:00:25]} Bxd4+ {[%emt 0:00:08]} 23. Kh1 {[%emt 0:00:08]} Ne3 {[%emt 0:00:38]} 24. Rf3 {[%emt 0:05:19]} Nd5 {[%emt 0:18:30]} 25. Ne2 {[%emt 0:07:19]} Bxb2 {[%emt 0:01:15]} 26. Rb1 {[%emt 0:00:12]} Rc2 {[%emt 0:04:33]} 27. Rb3 {[%emt 0:02:01]} Rxe2 {[%emt 0:00:22]} 28. R3xb2 {[%emt 0:02:45]} Rxb2 {[%emt 0:00:05]} 0-1

[Event "1st Bella Italia International 2022"]
[Site "Lignano"]
[Date "2022.08.19"]
[Round "4.12"]
[White "Etxagibel Larranaga, Asier"]
[Black "Seres, Bela"]
[Result "1-0"]
[ECO "A36"]
[WhiteElo "2118"]
[BlackElo "2207"]
[Annotator "NA RC"]
[PlyCount "95"]
[EventDate "2022.08.18"]
[EventCountry "ITA"]
[SourceTitle "playchess.com"]
[Source "ChessBase"]
[SourceQuality "1"]
[TimeControl "5400+30"]

1. c4 {[%emt 0:00:11]} g6 {[%emt 0:00:55]} 2. g3 {[%emt 0:00:08]} Bg7 {[%emt 0:00:08]} 3. Bg2 {[%emt 0:00:02]} c5 {[%emt 0:01:13]} 4. Nc3 {[%emt 0:01:05]} Nc6 {[%emt 0:00:08]} 5. e3 {[%emt 0:01:21]} Nh6 {[%emt 0:07:53]} 6. Nge2 {[%emt 0:01:06]} Nf5 {[%emt 0:00:22]} 7. O-O {[%emt 0:01:03]} O-O {[%emt 0:02:47]} 8. b3 {[%emt 0:05:20]} a6 {[%emt 0:01:10]} 9. Bb2 {[%emt 0:06:29]} Rb8 {[%emt 0:13:00]} 10. Na4 {[%emt 0:17:29]} Bxb2 {[%emt 0:07:14]} 11. Nxb2 {[%emt 0:01:01]} Qb6 {[%emt 0:02:37]} 12. f4 {[%emt 0:12:50]} h5 {[%emt 0:05:00]} 13. Na4 {[%emt 0:08:58]} Qa7 {[%emt 0:00:54]} 14. e4 {[%emt 0:00:11]} Nfd4 {[%emt 0:00:25]} 15. f5 {[%emt 0:00:23]} d6 {[%emt 0:10:23]} 16. Nf4 {[%emt 0:04:37]} Ne5 {[%emt 0:00:58]} 17. Nxh5 {[%emt 0:04:09]} gxf5 {[%emt 0:10:52]} 18. exf5 {[%emt 0:05:02]} Bxf5 {[%emt 0:04:34]} 19. Rxf5 {[%emt 0:10:51]} Nxf5 {[%emt 0:00:34]} 20. Nc3 {[%emt 0:05:29]} Nd4 {[%emt 0:17:08]} 21. Nf4 {[%emt 0:10:21]} Kg7 {[%emt 0:03:16]} 22. Nh5+ {[%emt 0:01:43]} Kg8 {[%emt 0:04:08]} 23. Nf4 {[%emt 0:00:03]} Kg7 {[%emt 0:01:50]} 24. Nh5+ {[%emt 0:00:17]} Kh6 {[%emt 0:00:31]} 25. Nf4 {[%emt 0:00:05]} Rh8 {[%emt 0:00:39]} 26. Qf1 {[%emt 0:01:11]} Kg7 {[%emt 0:01:25]} 27. Re1 {[%emt 0:00:15]} e6 {[%emt 0:01:10]} 28. Ne4 {[%emt 0:00:30]} Qb6 {[%emt 0:00:45]} 29. Ne2 {[%emt 0:01:40]} f5 {[%emt 0:01:14]} 30. Ng5 {[%emt 0:00:12]} Rh6 {[%emt 0:00:19]} 31. h4 {[%emt 0:00:19]} Qd8 {[%emt 0:00:43]} 32. Nf4 {[%emt 0:00:42]} Qe7 {[%emt 0:00:44]} 33. Re3 {[%emt 0:00:33]} b5 {[%emt 0:00:21]} 34. cxb5 {[%emt 0:01:00]} axb5 {[%emt 0:00:07]} 35. Qb1 {[%emt 0:00:13]} b4 {[%emt 0:00:52]} 36. Bf1 {[%emt 0:00:20]} Rbh8 {[%emt 0:00:27]} 37. Bg2 {[%emt 0:00:23]} Re8 {[%emt 0:00:33]} 38. Qb2 {[%emt 0:00:19]} Qf6 {[%emt 0:00:34]} 39. Qb1 {[%emt 0:00:27]} Rg8 {[%emt 0:00:31]} 40. Qf1 {[%emt 0:00:20]} Ra8 {[%emt 0:00:14]} 41. Bxa8 {[%emt 0:00:03]} Rh8 {[%emt 0:00:04]} 42. Bg2 {[%emt 0:00:07]} Kf8 {[%emt 0:00:23]} 43. Qa6 {[%emt 0:00:05]} Nf7 {[%emt 0:01:51]} 44. Nxf7 {[%emt 0:00:44]} Kxf7 {[%emt 0:00:11]} 45. Qb7+ {[%emt 0:00:12]} Kg8 {[%emt 0:00:13]} 46. Qb8+ {[%emt 0:00:14]} Kg7 {[%emt 0:00:03]} 47. Qxd6 {[%emt 0:00:09]} e5 {[%emt 0:00:01]} 48. Rxe5 {[%emt 0:00:57]} 1-0

[Event "1st Bella Italia International 2022"]
[Site "Lignano"]
[Date "2022.08.19"]
[Round "4.13"]
[White "Massironi, Marco"]
[Black "Haller, Quentin"]
[Result "1/2-1/2"]
[ECO "B18"]
[WhiteElo "2200"]
[BlackElo "1995"]
[Annotator "NA RC"]
[PlyCount "64"]
[EventDate "2022.08.18"]
[EventCountry "ITA"]
[SourceTitle "playchess.com"]
[Source "ChessBase"]
[SourceQuality "1"]
[TimeControl "5400+30"]

1. e4 {[%emt 0:04:42]} c6 {[%emt 0:00:09]} 2. d4 {[%emt 0:00:11]} d5 {[%emt 0:00:11]} 3. Nc3 {[%emt 0:00:07]} dxe4 {[%emt 0:00:08]} 4. Nxe4 {[%emt 0:00:05]} Bf5 {[%emt 0:00:37]} 5. Bd3 {[%emt 0:00:08]} Qxd4 {[%emt 0:04:39]} 6. Nf3 {[%emt 0:00:07]} Qd8 {[%emt 0:01:44]} 7. Qe2 {[%emt 0:00:03]} e6 {[%emt 0:02:27]} 8. Bd2 {[%emt 0:00:08]} Bxe4 {[%emt 0:02:21]} 9. Bxe4 {[%emt 0:00:03]} Nf6 {[%emt 0:00:26]} 10. O-O-O {[%emt 0:00:43]} Qc7 {[%emt 0:05:02]} 11. Kb1 {[%emt 0:02:48]} Nbd7 {[%emt 0:01:54]} 12. Bc3 {[%emt 0:02:38]} Be7 {[%emt 0:02:49]} 13. Ne5 {[%emt 0:03:47]} Rd8 {[%emt 0:07:06]} 14. Nxd7 {[%emt 0:15:22]} Rxd7 {[%emt 0:01:05]} 15. Bd3 {[%emt 0:01:46]} O-O {[%emt 0:10:08]} 16. Be5 {[%emt 0:00:08]} Qb6 {[%emt 0:01:47]} 17. g4 {[%emt 0:05:21]} Rd5 {[%emt 0:03:39]} 18. c4 {[%emt 0:08:18]} Rxe5 {[%emt 0:12:49]} 19. Qxe5 {[%emt 0:00:38]} Nxg4 {[%emt 0:00:17]} 20. Qe4 {[%emt 0:04:17]} Nf6 {[%emt 0:00:21]} 21. Qf3 {[%emt 0:01:35]} Bc5 {[%emt 0:03:09]} 22. Rd2 {[%emt 0:14:02]} Bd4 {[%emt 0:02:34]} 23. Rg1 {[%emt 0:00:11]} Kh8 {[%emt 0:01:18]} 24. Qg3 {[%emt 0:03:56]} Rg8 {[%emt 0:00:25]} 25. Qh4 {[%emt 0:03:20]} c5 {[%emt 0:05:10]} 26. Rg3 {[%emt 0:11:12]} h6 {[%emt 0:01:35]} 27. Be4 {[%emt 0:06:51]} Qb4 {[%emt 0:02:17]} 28. Rgd3 {[%emt 0:01:50]} Qxc4 {[%emt 0:01:35]} 29. Bxb7 {[%emt 0:05:22]} Rb8 {[%emt 0:03:37]} 30. Rb3 {[%emt 0:00:01]} Qf1+ {[%emt 0:03:11]} 31. Kc2 {[%emt 0:00:02]} Qc4+ {[%emt 0:02:29]} 32. Kb1 {[%emt 0:00:02]} Qf1+ {[%emt 0:01:13]} 1/2-1/2

[Event "1st Bella Italia International 2022"]
[Site "Lignano"]
[Date "2022.08.19"]
[Round "4.14"]
[White "Gelle, Istvan"]
[Black "Bartolozzi, Roberto"]
[Result "1-0"]
[ECO "A48"]
[WhiteElo "2218"]
[BlackElo "1967"]
[Annotator "NA RC"]
[PlyCount "107"]
[EventDate "2022.08.18"]
[EventCountry "ITA"]
[SourceTitle "playchess.com"]
[Source "ChessBase"]
[SourceQuality "1"]
[TimeControl "5400+30"]

1. d4 {[%emt 0:00:05]} Nf6 {[%emt 0:00:11]} 2. Bf4 {[%emt 0:00:08]} g6 {[%emt 0:00:07]} 3. e3 {[%emt 0:00:10]} Bg7 {[%emt 0:00:05]} 4. Nf3 {[%emt 0:00:10]} d6 {[%emt 0:00:06]} 5. h3 {[%emt 0:00:10]} O-O {[%emt 0:00:06]} 6. Be2 {[%emt 0:00:06]} c5 {[%emt 0:00:49]} 7. O-O {[%emt 0:02:38]} b6 {[%emt 0:00:32]} 8. a4 {[%emt 0:00:48]} a6 {[%emt 0:02:32]} 9. Nbd2 {[%emt 0:00:49]} Bb7 {[%emt 0:01:24]} 10. Re1 {[%emt 0:00:31]} Nbd7 {[%emt 0:00:58]} 11. Bh2 {[%emt 0:00:26]} Ra7 {[%emt 0:03:31]} 12. Bf1 {[%emt 0:06:19]} Qa8 {[%emt 0:01:14]} 13. c4 {[%emt 0:01:24]} Rd8 {[%emt 0:27:43]} 14. d5 {[%emt 0:05:06]} b5 {[%emt 0:04:51]} 15. e4 {[%emt 0:00:28]} Ne8 {[%emt 0:08:35]} 16. cxb5 {[%emt 0:04:59]} axb5 {[%emt 0:00:41]} 17. Bxb5 {[%emt 0:00:21]} Bxb2 {[%emt 0:02:35]} 18. Rb1 {[%emt 0:00:30]} Bg7 {[%emt 0:00:52]} 19. Nc4 {[%emt 0:10:11]} Ba6 {[%emt 0:05:42]} 20. Bc6 {[%emt 0:14:37]} Qc8 {[%emt 0:02:02]} 21. Qc2 {[%emt 0:03:03]} Bxc4 {[%emt 0:01:47]} 22. Qxc4 {[%emt 0:00:16]} Qc7 {[%emt 0:00:51]} 23. Bf4 {[%emt 0:02:59]} Ne5 {[%emt 0:15:38]} 24. Bxe5 {[%emt 0:02:46]} Bxe5 {[%emt 0:02:06]} 25. Nxe5 {[%emt 0:00:25]} dxe5 {[%emt 0:00:01]} 26. Qxc5 {[%emt 0:00:29]} Nd6 {[%emt 0:00:47]} 27. Qb6 {[%emt 0:02:52]} Qxb6 {[%emt 0:01:24]} 28. Rxb6 {[%emt 0:00:08]} Kg7 {[%emt 0:02:03]} 29. f3 {[%emt 0:00:34]} Ra5 {[%emt 0:00:31]} 30. Rb4 {[%emt 0:04:57]} h5 {[%emt 0:01:14]} 31. h4 {[%emt 0:01:58]} Rc8 {[%emt 0:01:10]} 32. Reb1 {[%emt 0:08:06]} f5 {[%emt 0:02:15]} 33. R1b3 {[%emt 0:15:11]} fxe4 {[%emt 0:01:33]} 34. fxe4 {[%emt 0:00:10]} Rd8 {[%emt 0:02:26]} 35. Rf3 {[%emt 0:01:57]} Rc8 {[%emt 0:01:45]} 36. Kf2 {[%emt 0:01:08]} Rc5 {[%emt 0:00:58]} 37. Kg3 {[%emt 0:01:20]} Ra5 {[%emt 0:00:16]} 38. Kh3 {[%emt 0:00:23]} Rh8 {[%emt 0:00:29]} 39. g4 {[%emt 0:03:05]} hxg4+ {[%emt 0:00:12]} 40. Kxg4 {[%emt 0:00:03]} Rd8 {[%emt 0:01:15]} 41. Kh3 {[%emt 0:01:56]} Rh8 {[%emt 0:00:19]} 42. Rg3 {[%emt 0:01:10]} Kh6 {[%emt 0:00:27]} 43. Rg5 {[%emt 0:01:06]} Rf8 {[%emt 0:00:32]} 44. Rxe5 {[%emt 0:00:21]} Rf4 {[%emt 0:01:33]} 45. Kg3 {[%emt 0:00:58]} Rf7 {[%emt 0:00:12]} 46. Rb8 {[%emt 0:02:15]} Rc5 {[%emt 0:00:45]} 47. Rb3 {[%emt 0:01:06]} Rc4 {[%emt 0:04:17]} 48. Re3 {[%emt 0:01:05]} Rc1 {[%emt 0:00:31]} 49. Rf3 {[%emt 0:00:23]} Nc4 {[%emt 0:00:29]} 50. Rxf7 {[%emt 0:00:47]} Nxe5 {[%emt 0:00:10]} 51. Rxe7 {[%emt 0:00:22]} Nxc6 {[%emt 0:00:58]} 52. dxc6 {[%emt 0:00:04]} Rxc6 {[%emt 0:00:02]} 53. Re5 {[%emt 0:00:07]} Rf6 {[%emt 0:01:16]} 54. a5 {[%emt 0:00:25]} 1-0

[Event "1st Bella Italia International 2022"]
[Site "Lignano"]
[Date "2022.08.19"]
[Round "4.15"]
[White "Zuttioni, Federico"]
[Black "Olabe Odriozola, Eduardo"]
[Result "1/2-1/2"]
[ECO "C41"]
[WhiteElo "2161"]
[BlackElo "1946"]
[Annotator "NA RC"]
[PlyCount "50"]
[EventDate "2022.08.18"]
[EventCountry "ITA"]
[SourceTitle "playchess.com"]
[Source "ChessBase"]
[SourceQuality "1"]
[TimeControl "5400+30"]

1. e4 {[%emt 0:00:53]} e5 {[%emt 0:01:21]} 2. Nf3 {[%emt 0:00:16]} d6 {[%emt 0:00:06]} 3. d4 {[%emt 0:01:32]} exd4 {[%emt 0:01:55]} 4. Nxd4 {[%emt 0:00:16]} Nf6 {[%emt 0:00:05]} 5. Nc3 {[%emt 0:00:22]} Be7 {[%emt 0:00:35]} 6. g3 {[%emt 0:01:40]} O-O {[%emt 0:01:25]} 7. Bg2 {[%emt 0:00:20]} Re8 {[%emt 0:03:04]} 8. O-O {[%emt 0:00:45]} Bf8 {[%emt 0:01:30]} 9. Re1 {[%emt 0:02:58]} Na6 {[%emt 0:01:09]} 10. Nde2 {[%emt 0:16:51]} c6 {[%emt 0:03:02]} 11. Nf4 {[%emt 0:05:02]} Nc5 {[%emt 0:13:41]} 12. h3 {[%emt 0:14:15]} Qc7 {[%emt 0:03:25]} 13. a4 {[%emt 0:03:26]} b6 {[%emt 0:03:34]} 14. Nd3 {[%emt 0:15:44]} Ba6 {[%emt 0:16:46]} 15. Nxc5 {[%emt 0:11:57]} bxc5 {[%emt 0:00:44]} 16. Bf4 {[%emt 0:02:03]} Rab8 {[%emt 0:00:52]} 17. b3 {[%emt 0:02:01]} Qa5 {[%emt 0:05:37]} 18. Bd2 {[%emt 0:00:46]} c4 {[%emt 0:02:51]} 19. b4 {[%emt 0:08:50]} Qc7 {[%emt 0:04:23]} 20. Rb1 {[%emt 0:00:29]} g6 {[%emt 0:01:27]} 21. Bf4 {[%emt 0:03:35]} Nh5 {[%emt 0:03:42]} 22. Be3 {[%emt 0:00:28]} Bg7 {[%emt 0:00:49]} 23. Qd2 {[%emt 0:03:30]} Nf6 {[%emt 0:01:12]} 24. Bf4 {[%emt 0:03:44]} Rbd8 {[%emt 0:02:18]} 25. b5 {[%emt 0:00:38]} cxb5 {[%emt 0:27:27]} 1/2-1/2

[Event "1st Bella Italia International 2022"]
[Site "Lignano"]
[Date "2022.08.19"]
[Round "4.16"]
[White "Cristiani, Cesare"]
[Black "Grigorian, Roudolph"]
[Result "0-1"]
[ECO "E12"]
[WhiteElo "2006"]
[BlackElo "2101"]
[Annotator "NA RC"]
[PlyCount "78"]
[EventDate "2022.08.18"]
[EventCountry "ITA"]
[SourceTitle "playchess.com"]
[Source "ChessBase"]
[SourceQuality "1"]
[TimeControl "5400+30"]

1. d4 {[%emt 0:00:08]} d5 {[%emt 0:00:06]} 2. c4 {[%emt 0:00:06]} e6 {[%emt 0:00:05]} 3. Nf3 {[%emt 0:00:14]} Nf6 {[%emt 0:00:04]} 4. e3 {[%emt 0:00:47]} Be7 {[%emt 0:02:01]} 5. Nc3 {[%emt 0:00:44]} O-O {[%emt 0:00:14]} 6. a3 {[%emt 0:01:43]} b6 {[%emt 0:00:16]} 7. cxd5 {[%emt 0:00:25]} Nxd5 {[%emt 0:01:46]} 8. Be2 {[%emt 0:02:28]} Bb7 {[%emt 0:00:22]} 9. O-O {[%emt 0:00:15]} Nd7 {[%emt 0:00:08]} 10. Bd2 {[%emt 0:11:13]} N7f6 {[%emt 0:00:26]} 11. Nxd5 {[%emt 0:00:38]} Qxd5 {[%emt 0:01:21]} 12. Rc1 {[%emt 0:02:03]} Rac8 {[%emt 0:21:46]} 13. Bc3 {[%emt 0:03:43]} Ne4 {[%emt 0:03:56]} 14. Qa4 {[%emt 0:06:42]} a5 {[%emt 0:11:09]} 15. Rfd1 {[%emt 0:01:09]} Qh5 {[%emt 0:12:22]} 16. Qb5 {[%emt 0:20:10]} Bd5 {[%emt 0:01:47]} 17. Be1 {[%emt 0:03:45]} Qh6 {[%emt 0:16:12]} 18. Qd3 {[%emt 0:04:32]} Bd6 {[%emt 0:01:20]} 19. Ne5 {[%emt 0:02:17]} Bxe5 {[%emt 0:05:19]} 20. dxe5 {[%emt 0:00:09]} Nc5 {[%emt 0:00:13]} 21. Rxc5 {[%emt 0:01:15]} bxc5 {[%emt 0:00:07]} 22. e4 {[%emt 0:00:53]} Bc6 {[%emt 0:00:30]} 23. Bxa5 {[%emt 0:00:15]} Qg5 {[%emt 0:00:34]} 24. Bc3 {[%emt 0:09:55]} Rfd8 {[%emt 0:00:49]} 25. Qc2 {[%emt 0:00:32]} Rxd1+ {[%emt 0:00:37]} 26. Bxd1 {[%emt 0:00:45]} Rd8 {[%emt 0:00:14]} 27. Bf3 {[%emt 0:00:26]} c4 {[%emt 0:03:52]} 28. h3 {[%emt 0:00:56]} Rd3 {[%emt 0:01:35]} 29. Kh2 {[%emt 0:02:14]} Qf4+ {[%emt 0:00:14]} 30. Kg1 {[%emt 0:00:39]} Bxe4 {[%emt 0:04:26]} 31. Bxe4 {[%emt 0:00:09]} Qxe4 {[%emt 0:00:02]} 32. a4 {[%emt 0:03:24]} Qd5 {[%emt 0:04:05]} 33. a5 {[%emt 0:00:30]} Kf8 {[%emt 0:04:41]} 34. Qa4 {[%emt 0:02:11]} g5 {[%emt 0:02:52]} 35. a6 {[%emt 0:00:32]} Qe4 {[%emt 0:01:43]} 36. a7 {[%emt 0:00:55]} Rd8 {[%emt 0:00:02]} 37. Qb4+ {[%emt 0:04:04]} Kg7 {[%emt 0:00:28]} 38. Qc5 {[%emt 0:02:41]} Rd1+ {[%emt 0:00:27]} 39. Kh2 {[%emt 0:00:11]} Qf4+ {[%emt 0:00:10]} 0-1

[Event "1st Bella Italia International 2022"]
[Site "Lignano"]
[Date "2022.08.19"]
[Round "4.17"]
[White "Rotolante, Luca"]
[Black "Montorsi, Matteo"]
[Result "0-1"]
[ECO "A46"]
[WhiteElo "2010"]
[BlackElo "2100"]
[Annotator "NA RC"]
[PlyCount "104"]
[EventDate "2022.08.18"]
[EventCountry "ITA"]
[SourceTitle "playchess.com"]
[Source "ChessBase"]
[SourceQuality "1"]
[TimeControl "5400+30"]

1. d4 {[%emt 0:00:04]} Nf6 {[%emt 0:00:09]} 2. Nf3 {[%emt 0:00:07]} e6 {[%emt 0:00:22]} 3. a3 {[%emt 0:00:22]} g6 {[%emt 0:01:28]} 4. g3 {[%emt 0:00:16]} Bg7 {[%emt 0:00:09]} 5. Bg2 {[%emt 0:00:05]} O-O {[%emt 0:00:40]} 6. O-O {[%emt 0:00:05]} d6 {[%emt 0:00:06]} 7. c4 {[%emt 0:00:25]} Nbd7 {[%emt 0:02:37]} 8. Nc3 {[%emt 0:00:22]} a6 {[%emt 0:01:46]} 9. e4 {[%emt 0:01:05]} e5 {[%emt 0:01:46]} 10. Re1 {[%emt 0:00:43]} c6 {[%emt 0:01:42]} 11. h3 {[%emt 0:01:57]} Qc7 {[%emt 0:07:17]} 12. Be3 {[%emt 0:02:25]} exd4 {[%emt 0:10:16]} 13. Bxd4 {[%emt 0:00:13]} Re8 {[%emt 0:01:58]} 14. Rc1 {[%emt 0:04:24]} c5 {[%emt 0:09:27]} 15. Nd5 {[%emt 0:00:36]} Nxd5 {[%emt 0:11:09]} 16. cxd5 {[%emt 0:00:06]} Qd8 {[%emt 0:05:34]} 17. Bxg7 {[%emt 0:06:53]} Kxg7 {[%emt 0:02:25]} 18. b4 {[%emt 0:00:32]} b6 {[%emt 0:03:06]} 19. Qd2 {[%emt 0:01:18]} Qf6 {[%emt 0:00:50]} 20. a4 {[%emt 0:03:33]} Bb7 {[%emt 0:01:29]} 21. a5 {[%emt 0:00:59]} b5 {[%emt 0:06:26]} 22. bxc5 {[%emt 0:03:30]} dxc5 {[%emt 0:02:47]} 23. Nh2 {[%emt 0:01:23]} c4 {[%emt 0:03:25]} 24. Ng4 {[%emt 0:00:20]} Qd6 {[%emt 0:00:57]} 25. Qh6+ {[%emt 0:03:12]} Kg8 {[%emt 0:00:01]} 26. Qg5 {[%emt 0:00:24]} f6 {[%emt 0:01:41]} 27. Qh6 {[%emt 0:04:47]} Ne5 {[%emt 0:02:09]} 28. f4 {[%emt 0:02:20]} Nxg4 {[%emt 0:02:30]} 29. hxg4 {[%emt 0:00:05]} Re7 {[%emt 0:00:34]} 30. g5 {[%emt 0:00:58]} fxg5 {[%emt 0:07:55]} 31. Qxg5 {[%emt 0:00:20]} Rf8 {[%emt 0:01:59]} 32. e5 {[%emt 0:08:55]} Qc5+ {[%emt 0:00:01]} 33. Kh2 {[%emt 0:00:09]} Rf5 {[%emt 0:01:21]} 34. Qxe7 {[%emt 0:08:57]} Qxe7 {[%emt 0:00:02]} 35. d6 {[%emt 0:00:07]} Qg7 {[%emt 0:05:00]} 36. Rcd1 {[%emt 0:05:47]} Bc8 {[%emt 0:04:50]} 37. e6 {[%emt 0:00:27]} Qa7 {[%emt 0:01:41]} 38. g4 {[%emt 0:00:37]} Rf8 {[%emt 0:01:03]} 39. d7 {[%emt 0:00:12]} Bxd7 {[%emt 0:00:29]} 40. exd7 {[%emt 0:00:18]} Qb8 {[%emt 0:00:01]} 41. Re4 {[%emt 0:00:59]} c3 {[%emt 0:00:47]} 42. Kh1 {[%emt 0:01:04]} c2 {[%emt 0:00:29]} 43. Rc1 {[%emt 0:00:05]} Qc7 {[%emt 0:00:27]} 44. Re7 {[%emt 0:03:16]} Qd6 {[%emt 0:00:28]} 45. Re2 {[%emt 0:00:35]} Qd1+ {[%emt 0:00:15]} 46. Re1 {[%emt 0:00:06]} Qxg4 {[%emt 0:00:52]} 47. Bd5+ {[%emt 0:01:19]} Kg7 {[%emt 0:00:29]} 48. Re7+ {[%emt 0:00:32]} Kh6 {[%emt 0:00:27]} 49. Rf7 {[%emt 0:02:34]} Qh3+ {[%emt 0:00:45]} 50. Kg1 {[%emt 0:00:12]} Qe3+ {[%emt 0:00:05]} 51. Kh2 {[%emt 0:00:09]} Qxc1 {[%emt 0:00:56]} 52. Rxf8 {[%emt 0:00:05]} Qd2+ {[%emt 0:00:12]} 0-1